[Event "Deloitte NED-ch Women 2019"]
[Site "Amsterdam"]
[Date "2019.07.01"]
[Round "1.2"]
[White "Van Foreest, Machteld"]
[Black "Lanchava, Tea"]
[Result "1/2-1/2"]
[ECO "E39"]
[WhiteElo "2058"]
[BlackElo "2315"]
[Annotator "NA"]
[PlyCount "111"]
[EventDate "2019.07.01"]
[EventType "tourn"]
[EventCountry "NED"]
[SourceTitle "playchess.com"]
[Source "ChessBase"]
[SourceQuality "1"]
[TimeControl "40/5400+30:1800+30"]

1. e4 d6 2. d4 Nf6 3. Nc3 g6 4. Nf3 Bg7 5. Bc4 O-O 6. O-O Nc6 7. Be2 a6 8. a4 a5 9. Be3 Nb4 10. h3 d5 11. e5 Nd7 12. Na2 Nxa2 13. Rxa2 f6 14. exf6 exf6 15. Qd2 Nb6 16. b3 g5 17. Nh2 Qe7 18. Raa1 h6 19. Rae1 Bf5 20. Bh5 Qd6 21. f4 Qc6 22. Re2 Nc8 23. fxg5 fxg5 24. Bg4 Nd6 25. Bxf5 Nxf5 26. Bf2 Nd6 27. Nf3 Ne4 28. Qd3 Qd6 29. Nd2 Nxf2 30. Rexf2 Rxf2 31. Rxf2 Re8 32. Nf3 Re4 33. Qb5 b6 34. Re2 c6 35. Qa6 Qe6 36. Rxe4 dxe4 37. Ne5 Bxe5 38. dxe5 Qxe5 39. Qc8+ Kf7 40. Qd7+ Qe7 41. Qf5+ Kg7 42. g4 Qb4 43. Kf1 Qd4 44. Ke2 c5 45. Qe6 Qd8 46. Qxe4 Qd6 47. Qd3 Qe5+ 48. Kd2 Qf4+ 49. Kd1 Kf6 50. Qd8+ Ke5 51. Qxb6 Qf1+ 52. Kd2 Qf4+ 53. Kd1 Qd4+ 54. Kc1 Qa1+ 55. Kd2 Qd4+ 56. Kc1 1/2-1/2

[Event "Deloitte NED-ch Women 2019"]
[Site "Amsterdam"]
[Date "2019.07.01"]
[Round "1.4"]
[White "Paulet, Iozefina"]
[Black "Ratsma, Rosa"]
[Result "1-0"]
[ECO "D38"]
[WhiteElo "2262"]
[BlackElo "2282"]
[Annotator "NA"]
[PlyCount "121"]
[EventDate "2019.07.01"]
[EventType "tourn"]
[EventCountry "NED"]
[SourceTitle "playchess.com"]
[Source "ChessBase"]
[SourceQuality "1"]
[TimeControl "40/5400+30:1800+30"]

1. e4 c5 2. Nf3 d6 3. Bb5+ Nc6 4. O-O Bd7 5. Re1 Nf6 6. c3 a6 7. Bf1 Bg4 8. h3 Bxf3 9. Qxf3 e6 10. d3 Be7 11. Nd2 O-O 12. Qd1 b5 13. Nf3 Qb6 14. Be3 Rac8 15. g4 Rfd8 16. g5 Ne8 17. Nh2 d5 18. Qg4 d4 19. cxd4 cxd4 20. Bd2 Ne5 21. Qg3 Rc2 22. Re2 Rdc8 23. f4 Ng6 24. h4 Bd6 25. h5 Nf8 26. Nf3 b4 27. g6 fxg6 28. Rh2 Qd8 29. hxg6 h6 30. b3 a5 31. Bh3 Qe7 32. e5 Bb8 33. f5 exf5 34. Bxf5 R8c5 35. Bf4 Rxh2 36. Qxh2 Qc7 37. Re1 Rc2 38. Re2 Rxe2 39. Qxe2 Qc6 40. Qe4 Qxe4 41. Bxe4 Ne6 42. Bd5 N8c7 43. Bc4 Kf8 44. Bg3 Ba7 45. Kg2 Bc5 46. Nh4 Be7 47. Nf5 Bc5 48. Kf3 Ng5+ 49. Kg4 Nge6 50. Bh4 Ke8 51. Kf3 Kd7 52. Ke4 Bb6 53. Be7 Ba7 54. Bf6 gxf6 55. exf6 Ng5+ 56. Kf4 Nce6+ 57. Kg4 Bc5 58. g7 Nxg7 59. fxg7 Nh7 60. Nxh6 Bf8 61. gxf8=Q 1-0

[Event "Deloitte NED-ch Women 2019"]
[Site "Amsterdam"]
[Date "2019.07.01"]
[Round "1.6"]
[White "Roebers, Eline"]
[Black "Van Weersel, Arlette"]
[Result "1/2-1/2"]
[ECO "C45"]
[WhiteElo "2069"]
[BlackElo "2176"]
[Annotator "NA"]
[PlyCount "114"]
[EventDate "2019.07.01"]
[EventType "tourn"]
[EventCountry "NED"]
[SourceTitle "playchess.com"]
[Source "ChessBase"]
[SourceQuality "1"]
[TimeControl "40/5400+30:1800+30"]

1. e4 {[%emt 0:00:00]} e5 {[%emt 0:00:00]} 2. Nf3 {[%emt 0:00:00]} Nc6 {[%emt 0:00:00]} 3. d4 {[%emt 0:00:21]} exd4 {[%emt 0:00:00]} 4. Nxd4 {[%emt 0:00:31]} Bc5 {[%emt 0:00:55]} 5. Nb3 {[%emt 0:00:46]} Bb6 {[%emt 0:00:23]} 6. Nc3 {[%emt 0:01:46]} d6 {[%emt 0:05:34]} 7. Qe2 {[%emt 0:05:44]} Be6 {[%emt 0:09:58]} 8. Be3 {[%emt 0:07:45]} Nf6 {[%emt 0:06:26]} 9. O-O-O {[%emt 0:07:28]} Qe7 {[%emt 0:14:31]} 10. g3 {[%emt 0:13:47]} O-O-O {[%emt 0:21:23]} 11. Bg2 {[%emt 0:08:09]} Bg4 {[%emt 0:03:40]} 12. f3 {[%emt 0:09:09]} Be6 {[%emt 0:01:02]} 13. Rhe1 {[%emt 0:09:27]} Bxe3+ {[%emt 0:15:58]} 14. Qxe3 {[%emt 0:00:12]} Rhe8 {[%emt 0:00:16]} 15. Qf2 {[%emt 0:08:31]} Nd7 {[%emt 0:05:12]} 16. Nd5 {[%emt 0:14:29]} Qf8 {[%emt 0:00:24]} 17. f4 {[%emt 0:03:00]} Nb6 {[%emt 0:02:15]} 18. Kb1 {[%emt 0:03:18]} Kb8 {[%emt 0:03:50]} 19. Nd4 {[%emt 0:01:30]} Bxd5 {[%emt 0:00:39]} 20. exd5 {[%emt 0:00:12]} Nxd4 {[%emt 0:00:29]} 21. Qxd4 {[%emt 0:00:52]} Rxe1 {[%emt 0:00:42]} 22. Rxe1 {[%emt 0:00:03]} Re8 {[%emt 0:00:25]} 23. Rxe8+ {[%emt 0:00:27]} Qxe8 {[%emt 0:00:04]} 24. Qe4 {[%emt 0:00:07]} Qxe4 {[%emt 0:00:35]} 25. Bxe4 {[%emt 0:00:05]} h6 {[%emt 0:01:34]} 26. Kc1 {[%emt 0:00:14]} Kc8 {[%emt 0:00:38]} 27. b3 {[%emt 0:00:56]} Kd8 {[%emt 0:01:01]} 28. Kd2 {[%emt 0:00:51]} Nd7 {[%emt 0:01:24]} 29. Ke3 {[%emt 0:01:16]} Nf6 {[%emt 0:00:26]} 30. Bf3 {[%emt 0:00:10]} Kd7 {[%emt 0:00:22]} 31. Kd4 {[%emt 0:01:13]} c6 {[%emt 0:03:37]} 32. c4 {[%emt 0:01:23]} c5+ {[%emt 0:00:11]} 33. Kd3 {[%emt 0:00:52]} b6 {[%emt 0:00:45]} 34. Kd2 {[%emt 0:00:56]} Ke7 {[%emt 0:00:15]} 35. Ke3 {[%emt 0:00:23]} Ne8 {[%emt 0:00:49]} 36. a4 {[%emt 0:01:00]} a5 {[%emt 0:00:10]} 37. Be4 {[%emt 0:00:41]} Kf6 {[%emt 0:01:22]} 38. Kf3 {[%emt 0:00:29]} Nc7 {[%emt 0:00:40]} 39. h3 {[%emt 0:00:28]} Na6 {[%emt 0:00:20]} 40. Ke3 {[%emt 0:00:31]} Nb4 {[%emt 0:00:34]} 41. Bb1 {[%emt 0:30:11]} Na6 {[%emt 0:30:44]} 42. Be4 {[%emt 0:00:40]} Nc7 {[%emt 0:00:00]} 43. Kf3 {[%emt 0:00:00]} Ne8 {[%emt 0:00:00]} 44. h4 {[%emt 0:00:00]} h5 {[%emt 0:00:00]} 45. Bd3 {[%emt 0:00:00]} g6 {[%emt 0:00:00]} 46. g4 {[%emt 0:00:00]} hxg4+ {[%emt 0:00:00]} 47. Kxg4 {[%emt 0:00:00]} Ng7 {[%emt 0:00:00]} 48. Bc2 {[%emt 0:00:00]} Nh5 {[%emt 0:00:00]} 49. Bd3 {[%emt 0:00:00]} Kg7 {[%emt 0:01:44]} 50. f5 {[%emt 0:00:00]} Kf6 {[%emt 0:00:24]} 51. fxg6 {[%emt 0:00:00]} fxg6 {[%emt 0:00:03]} 52. Bc2 {[%emt 0:00:00]} Ng7 {[%emt 0:00:09]} 53. Kf4 {[%emt 0:00:00]} Ne8 {[%emt 0:00:42]} 54. Bd3 {[%emt 0:00:00]} Ng7 {[%emt 0:01:33]} 55. Bc2 {[%emt 0:00:00]} Nh5+ {[%emt 0:00:10]} 56. Kg4 {[%emt 0:00:00]} Ng7 {[%emt 0:00:04]} 57. Kf4 {[%emt 0:00:00]} Nh5+ {[%emt 0:00:31]} 1/2-1/2

[Event "Deloitte NED-ch Women 2019"]
[Site "Amsterdam"]
[Date "2019.07.01"]
[Round "1.8"]
[White "Keetman, Maaike"]
[Black "Kazarian, Anna-Maja"]
[Result "1-0"]
[ECO "B11"]
[WhiteElo "2153"]
[BlackElo "2142"]
[Annotator "NA"]
[PlyCount "150"]
[EventDate "2019.07.01"]
[EventType "tourn"]
[EventCountry "NED"]
[SourceTitle "playchess.com"]
[Source "ChessBase"]
[SourceQuality "1"]
[TimeControl "40/5400+30:1800+30"]

1. e4 {[%emt 0:00:00]} c6 {[%emt 0:00:00]} 2. Nf3 {[%emt 0:00:00]} d5 {[%emt 0:00:00]} 3. Nc3 {[%emt 0:00:00]} Nf6 {[%emt 0:00:02]} 4. e5 {[%emt 0:00:08]} Ne4 {[%emt 0:00:04]} 5. Ne2 {[%emt 0:00:08]} e6 {[%emt 0:00:15]} 6. d3 {[%emt 0:02:44]} Nc5 {[%emt 0:00:05]} 7. d4 {[%emt 0:01:03]} Ncd7 {[%emt 0:00:05]} 8. Nf4 {[%emt 0:15:06]} Be7 {[%emt 0:05:32]} 9. Bd3 {[%emt 0:01:48]} c5 {[%emt 0:08:21]} 10. c3 {[%emt 0:00:41]} Nc6 {[%emt 0:07:37]} 11. O-O {[%emt 0:04:22]} cxd4 {[%emt 0:24:38]} 12. cxd4 {[%emt 0:00:29]} Nf8 {[%emt 0:02:26]} 13. Nh5 {[%emt 0:22:19]} Rg8 {[%emt 0:01:22]} 14. Be3 {[%emt 0:03:52]} g6 {[%emt 0:10:39]} 15. Nf4 {[%emt 0:01:58]} f6 {[%emt 0:02:33]} 16. exf6 {[%emt 0:08:08]} Bxf6 {[%emt 0:00:03]} 17. Re1 {[%emt 0:00:22]} Kf7 {[%emt 0:10:55]} 18. Rc1 {[%emt 0:09:50]} Bd7 {[%emt 0:03:21]} 19. Nh3 {[%emt 0:02:14]} Kg7 {[%emt 0:01:52]} 20. Qd2 {[%emt 0:04:47]} Kh8 {[%emt 0:05:50]} 21. Bg5 {[%emt 0:01:58]} Bxg5 {[%emt 0:00:26]} 22. Qxg5 {[%emt 0:01:24]} Qxg5 {[%emt 0:00:30]} 23. Nhxg5 {[%emt 0:00:02]} Rg7 {[%emt 0:02:53]} 24. Ne5 {[%emt 0:03:28]} Nxe5 {[%emt 0:00:13]} 25. Rxe5 {[%emt 0:00:07]} h6 {[%emt 0:01:49]} 26. Nf3 {[%emt 0:00:24]} Rc8 {[%emt 0:00:05]} 27. Ree1 {[%emt 0:00:39]} Rxc1 {[%emt 0:02:43]} 28. Rxc1 {[%emt 0:00:03]} Be8 {[%emt 0:00:13]} 29. Ne5 {[%emt 0:03:25]} Re7 {[%emt 0:01:32]} 30. Rc8 {[%emt 0:01:06]} Kg7 {[%emt 0:00:10]} 31. Kf1 {[%emt 0:00:34]} Nh7 {[%emt 0:05:04]} 32. Ke2 {[%emt 0:01:46]} Nf6 {[%emt 0:00:05]} 33. f3 {[%emt 0:01:59]} Bf7 {[%emt 0:00:19]} 34. Kd2 {[%emt 0:02:15]} Ne8 {[%emt 0:00:13]} 35. Rd8 {[%emt 0:04:16]} Nf6 {[%emt 0:00:56]} 36. Rc8 {[%emt 0:02:18]} Ne8 {[%emt 0:00:04]} 37. b4 {[%emt 0:01:22]} Nd6 {[%emt 0:03:06]} 38. Rd8 {[%emt 0:00:15]} Ne8 {[%emt 0:00:02]} 39. a4 {[%emt 0:00:59]} g5 {[%emt 0:00:45]} 40. Rc8 {[%emt 0:00:39]} Rc7 {[%emt 0:02:23]} 41. Rxc7 {[%emt 0:05:06]} Nxc7 {[%emt 0:00:06]} 42. b5 {[%emt 0:00:05]} Be8 {[%emt 0:05:35]} 43. Kc3 {[%emt 0:01:40]} Kf6 {[%emt 0:02:35]} 44. Kb4 {[%emt 0:01:44]} Ke7 {[%emt 0:02:07]} 45. Kc5 {[%emt 0:03:33]} b6+ {[%emt 0:04:51]} 46. Kb4 {[%emt 0:00:08]} Kf6 {[%emt 0:02:12]} 47. Kc3 {[%emt 0:08:27]} Kg7 {[%emt 0:06:05]} 48. Kd2 {[%emt 0:00:15]} Kf6 {[%emt 0:00:29]} 49. Ke3 {[%emt 0:00:15]} Kg7 {[%emt 0:04:27]} 50. f4 {[%emt 0:00:39]} Bh5 {[%emt 0:02:39]} 51. Bc2 {[%emt 0:06:31]} Ne8 {[%emt 0:01:42]} 52. fxg5 {[%emt 0:00:56]} hxg5 {[%emt 0:00:01]} 53. Nc6 {[%emt 0:00:32]} Nd6 {[%emt 0:00:18]} 54. Nxa7 {[%emt 0:00:52]} Be8 {[%emt 0:01:20]} 55. Kf3 {[%emt 0:02:05]} Kf6 {[%emt 0:01:03]} 56. Kg4 {[%emt 0:00:50]} Bd7 {[%emt 0:00:49]} 57. Kf3 {[%emt 0:01:24]} Nc4 {[%emt 0:01:10]} 58. g3 {[%emt 0:01:05]} e5 {[%emt 0:01:09]} 59. dxe5+ {[%emt 0:00:33]} Nxe5+ {[%emt 0:00:01]} 60. Ke3 {[%emt 0:00:00]} g4 {[%emt 0:01:23]} 61. Bd1 {[%emt 0:00:54]} Ke6 {[%emt 0:00:39]} 62. Nc6 {[%emt 0:02:49]} Bxc6 {[%emt 0:00:17]} 63. bxc6 {[%emt 0:00:01]} Kd6 {[%emt 0:00:47]} 64. Kf4 {[%emt 0:00:46]} Nd3+ {[%emt 0:00:18]} 65. Kf5 {[%emt 0:00:16]} Nb2 {[%emt 0:00:42]} 66. Bb3 {[%emt 0:00:31]} d4 {[%emt 0:00:29]} 67. Ke4 {[%emt 0:01:05]} d3 {[%emt 0:00:10]} 68. Ke3 {[%emt 0:00:06]} Kxc6 {[%emt 0:00:22]} 69. Kd2 {[%emt 0:00:09]} Kc5 {[%emt 0:00:54]} 70. Kc3 {[%emt 0:00:10]} d2 {[%emt 0:00:36]} 71. Kxb2 {[%emt 0:00:11]} b5 {[%emt 0:00:23]} 72. axb5 {[%emt 0:00:16]} Kxb5 {[%emt 0:00:02]} 73. Bd1 {[%emt 0:00:05]} Kc4 {[%emt 0:00:23]} 74. Kc2 {[%emt 0:00:06]} Kd4 {[%emt 0:00:06]} 75. Kxd2 {[%emt 0:00:10]} Kd5 {[%emt 0:00:12]} 1-0

[Event "Deloitte NED-ch Women 2019"]
[Site "Amsterdam"]
[Date "2019.07.02"]
[Round "2.3"]
[White "Van Foreest, Machteld"]
[Black "Paulet, Iozefina"]
[Result "1/2-1/2"]
[ECO "C03"]
[WhiteElo "2058"]
[BlackElo "2262"]
[Annotator "NA"]
[PlyCount "125"]
[EventDate "2019.07.01"]
[EventType "tourn"]
[EventCountry "NED"]
[SourceTitle "playchess.com"]
[Source "ChessBase"]
[SourceQuality "1"]
[TimeControl "40/5400+30:1800+30"]

1. e4 {[%emt 0:00:00]} e6 {[%emt 0:00:00]} 2. d4 {[%emt 0:00:00]} d5 {[%emt 0:00:00]} 3. Nd2 {[%emt 0:00:00]} Be7 {[%emt 0:00:00]} 4. Bd3 {[%emt 0:00:00]} c5 {[%emt 0:01:22]} 5. dxc5 {[%emt 0:00:17]} Nf6 {[%emt 0:01:08]} 6. exd5 {[%emt 0:01:55]} Qxd5 {[%emt 0:00:23]} 7. Ngf3 {[%emt 0:00:35]} Nbd7 {[%emt 0:00:38]} 8. Nb3 {[%emt 0:02:03]} Nxc5 {[%emt 0:02:02]} 9. Bb5+ {[%emt 0:09:38]} Bd7 {[%emt 0:00:28]} 10. Bxd7+ {[%emt 0:01:20]} Ncxd7 {[%emt 0:07:44]} 11. O-O {[%emt 0:03:29]} Rc8 {[%emt 0:05:03]} 12. c3 {[%emt 0:03:46]} h6 {[%emt 0:02:07]} 13. Be3 {[%emt 0:02:57]} a6 {[%emt 0:00:13]} 14. Qe2 {[%emt 0:02:55]} Qh5 {[%emt 0:01:50]} 15. Nfd4 {[%emt 0:12:42]} Qxe2 {[%emt 0:00:47]} 16. Nxe2 {[%emt 0:00:12]} Nd5 {[%emt 0:00:04]} 17. Bd4 {[%emt 0:08:24]} e5 {[%emt 0:03:56]} 18. Be3 {[%emt 0:00:41]} Nxe3 {[%emt 0:15:35]} 19. fxe3 {[%emt 0:00:04]} Bg5 {[%emt 0:00:17]} 20. e4 {[%emt 0:02:37]} O-O {[%emt 0:00:08]} 21. Ng3 {[%emt 0:02:28]} g6 {[%emt 0:00:27]} 22. Rad1 {[%emt 0:04:05]} Nf6 {[%emt 0:00:53]} 23. h3 {[%emt 0:10:55]} h5 {[%emt 0:03:21]} 24. Nd2 {[%emt 0:04:15]} h4 {[%emt 0:02:15]} 25. Ne2 {[%emt 0:00:13]} Rce8 {[%emt 0:07:36]} 26. Nf3 {[%emt 0:05:26]} Be3+ {[%emt 0:00:39]} 27. Kh2 {[%emt 0:00:38]} Nxe4 {[%emt 0:02:20]} 28. Rd5 {[%emt 0:03:48]} Bb6 {[%emt 0:07:51]} 29. Nxh4 {[%emt 0:03:28]} Rd8 {[%emt 0:00:22]} 30. Rfd1 {[%emt 0:02:25]} Nf2 {[%emt 0:02:15]} 31. R1d2 {[%emt 0:00:13]} Rxd5 {[%emt 0:06:34]} 32. Rxd5 {[%emt 0:00:07]} Rd8 {[%emt 0:00:03]} 33. Rxd8+ {[%emt 0:01:40]} Bxd8 {[%emt 0:00:02]} 34. Nf3 {[%emt 0:00:17]} f5 {[%emt 0:01:53]} 35. Nxe5 {[%emt 0:03:55]} Bc7 {[%emt 0:00:04]} 36. Kg1 {[%emt 0:00:02]} Nxh3+ {[%emt 0:00:04]} 37. gxh3 {[%emt 0:00:02]} Bxe5 {[%emt 0:00:04]} 38. Kf2 {[%emt 0:01:57]} Kf7 {[%emt 0:00:51]} 39. Kf3 {[%emt 0:00:35]} g5 {[%emt 0:01:28]} 40. Nc1 {[%emt 0:04:05]} Ke6 {[%emt 0:01:18]} 41. Nd3 {[%emt 0:32:46]} Kd5 {[%emt 0:33:16]} 42. Ke3 {[%emt 0:00:00]} Bd6 {[%emt 0:00:00]} 43. b3 {[%emt 0:00:00]} b5 {[%emt 0:00:00]} 44. Kf3 {[%emt 0:00:00]} a5 {[%emt 0:00:00]} 45. Ke3 {[%emt 0:00:00]} Bf8 {[%emt 0:00:00]} 46. a4 {[%emt 0:00:00]} bxa4 {[%emt 0:00:00]} 47. c4+ {[%emt 0:00:00]} Kc6 {[%emt 0:00:00]} 48. bxa4 {[%emt 0:00:00]} Bc5+ {[%emt 0:00:00]} 49. Kf3 {[%emt 0:00:19]} Kd6 {[%emt 0:00:00]} 50. Kg3 {[%emt 0:00:56]} Bb6 {[%emt 0:00:00]} 51. h4 {[%emt 0:00:19]} gxh4+ {[%emt 0:00:00]} 52. Kxh4 {[%emt 0:00:06]} Bd8+ {[%emt 0:00:00]} 53. Kg3 {[%emt 0:01:42]} Ke6 {[%emt 0:00:00]} 54. Kf4 {[%emt 0:01:06]} Kf6 {[%emt 0:00:00]} 55. Kg3 {[%emt 0:00:39]} Bc7+ {[%emt 0:00:00]} 56. Kf3 {[%emt 0:00:04]} Bd6 {[%emt 0:00:00]} 57. Ke3 {[%emt 0:00:36]} Kg5 {[%emt 0:00:00]} 58. Kf3 {[%emt 0:00:06]} f4 {[%emt 0:00:00]} 59. c5 {[%emt 0:00:54]} Bc7 {[%emt 0:00:00]} 60. c6 {[%emt 0:00:06]} Kf5 {[%emt 0:00:00]} 61. Nc5 {[%emt 0:00:10]} Ke5 {[%emt 0:00:00]} 62. Na6 {[%emt 0:00:17]} Kd6 {[%emt 0:00:01]} 63. Kxf4 {[%emt 0:00:38] Ke5+ Ke4+} 1/2-1/2

[Event "Deloitte NED-ch Women 2019"]
[Site "Amsterdam"]
[Date "2019.07.02"]
[Round "2.5"]
[White "Van Weersel, Arlette"]
[Black "Keetman, Maaike"]
[Result "1/2-1/2"]
[ECO "C01"]
[WhiteElo "2176"]
[BlackElo "2153"]
[Annotator "NA"]
[PlyCount "77"]
[EventDate "2019.07.01"]
[EventType "tourn"]
[EventCountry "NED"]
[SourceTitle "playchess.com"]
[Source "ChessBase"]
[SourceQuality "1"]
[TimeControl "40/5400+30:1800+30"]

1. e4 {[%emt 0:00:00]} e6 {[%emt 0:00:00]} 2. d4 {[%emt 0:00:00]} d5 {[%emt 0:00:00]} 3. Bd3 {[%emt 0:00:16]} dxe4 {[%emt 0:00:36]} 4. Bxe4 {[%emt 0:00:05]} Nf6 {[%emt 0:00:09]} 5. Bf3 {[%emt 0:00:07]} Bd6 {[%emt 0:04:59]} 6. Ne2 {[%emt 0:00:54]} O-O {[%emt 0:00:13]} 7. O-O {[%emt 0:00:30]} e5 {[%emt 0:06:01]} 8. dxe5 {[%emt 0:15:15]} Bxe5 {[%emt 0:00:09]} 9. Qxd8 {[%emt 0:01:21]} Rxd8 {[%emt 0:00:08]} 10. Nbc3 {[%emt 0:00:44]} c6 {[%emt 0:03:34]} 11. Be3 {[%emt 0:06:56]} Bf5 {[%emt 0:13:30]} 12. Rad1 {[%emt 0:03:20]} Nbd7 {[%emt 0:02:40]} 13. Nd4 {[%emt 0:15:40]} Bg4 {[%emt 0:11:56]} 14. h3 {[%emt 0:40:24]} Bxd4 {[%emt 0:07:21]} 15. hxg4 {[%emt 0:01:23]} Bxe3 {[%emt 0:08:32]} 16. fxe3 {[%emt 0:00:04]} h6 {[%emt 0:00:05]} 17. Rd4 {[%emt 0:01:34]} Kf8 {[%emt 0:04:01]} 18. Rfd1 {[%emt 0:02:05]} Ke7 {[%emt 0:02:11]} 19. Kf2 {[%emt 0:00:25]} Ne5 {[%emt 0:03:28]} 20. Kg3 {[%emt 0:01:02]} Rd7 {[%emt 0:08:20]} 21. b3 {[%emt 0:00:56]} Re8 {[%emt 0:02:18]} 22. Ne2 {[%emt 0:02:55]} Kd8 {[%emt 0:08:32]} 23. Nf4 {[%emt 0:01:47]} g6 {[%emt 0:00:30]} 24. Rh1 {[%emt 0:01:10]} Ng8 {[%emt 0:03:00]} 25. Nh3 {[%emt 0:01:27]} Kc7 {[%emt 0:01:29]} 26. Nf2 {[%emt 0:01:13]} Nxf3 {[%emt 0:07:10]} 27. Kxf3 {[%emt 0:00:05]} c5 {[%emt 0:00:17]} 28. Rxd7+ {[%emt 0:00:26]} Kxd7 {[%emt 0:00:01]} 29. Ne4 {[%emt 0:00:28]} Kc6 {[%emt 0:00:20]} 30. c4 {[%emt 0:00:19]} Rd8 {[%emt 0:00:41]} 31. g5 {[%emt 0:00:43]} hxg5 {[%emt 0:01:16]} 32. Nxg5 {[%emt 0:00:43]} f6 {[%emt 0:00:28]} 33. Ne4 {[%emt 0:00:24]} f5 {[%emt 0:00:05]} 34. Nc3 {[%emt 0:00:35]} Nf6 {[%emt 0:01:53]} 35. Rh6 {[%emt 0:00:54]} Rg8 {[%emt 0:00:04]} 36. e4 {[%emt 0:00:42]} Ng4 {[%emt 0:01:21]} 37. Rh7 {[%emt 0:00:36]} Ne5+ {[%emt 0:00:29]} 38. Kg3 {[%emt 0:00:49]} fxe4 {[%emt 0:00:17]} 39. Nxe4 {[%emt 0:00:07]} 1/2-1/2

[Event "Deloitte NED-ch Women 2019"]
[Site "Amsterdam"]
[Date "2019.07.02"]
[Round "2.6"]
[White "Lanchava, Tea"]
[Black "Kazarian, Anna-Maja"]
[Result "0-1"]
[ECO "A06"]
[WhiteElo "2315"]
[BlackElo "2142"]
[Annotator "NA"]
[PlyCount "92"]
[EventDate "2019.07.01"]
[EventType "tourn"]
[EventCountry "NED"]
[SourceTitle "playchess.com"]
[Source "ChessBase"]
[SourceQuality "1"]
[TimeControl "40/5400+30:1800+30"]

1. Nf3 {[%emt 0:00:00]} d5 {[%emt 0:00:00]} 2. e3 {[%emt 0:00:02]} c5 {[%emt 0:01:16]} 3. b3 {[%emt 0:00:09]} Nc6 {[%emt 0:00:55]} 4. Bb2 {[%emt 0:00:38]} Bg4 {[%emt 0:03:23]} 5. Bb5 {[%emt 0:01:35]} Qb6 {[%emt 0:06:16]} 6. c4 {[%emt 0:01:35]} a6 {[%emt 0:08:46]} 7. Bxc6+ {[%emt 0:09:34]} Qxc6 {[%emt 0:00:12]} 8. h3 {[%emt 0:00:12]} Bh5 {[%emt 0:09:16]} 9. g4 {[%emt 0:04:52]} Bg6 {[%emt 0:00:05]} 10. Ne5 {[%emt 0:00:19]} Qd6 {[%emt 0:02:47]} 11. Qf3 {[%emt 0:05:41]} e6 {[%emt 0:21:09]} 12. d4 {[%emt 0:09:39]} cxd4 {[%emt 0:05:56]} 13. Bxd4 {[%emt 0:02:26]} Nf6 {[%emt 0:05:17]} 14. Nd2 {[%emt 0:03:22]} Qc7 {[%emt 0:12:56]} 15. O-O {[%emt 0:13:31]} Ne4 {[%emt 0:05:57]} 16. Qe2 {[%emt 0:01:52]} Nxd2 {[%emt 0:04:30]} 17. Qxd2 {[%emt 0:00:46]} dxc4 {[%emt 0:02:39]} 18. Rac1 {[%emt 0:00:36]} Rd8 {[%emt 0:00:35]} 19. Qb2 {[%emt 0:03:21]} f6 {[%emt 0:02:25]} 20. Nxc4 {[%emt 0:02:14]} Qf7 {[%emt 0:02:31]} 21. Bb6 {[%emt 0:00:20]} Ra8 {[%emt 0:01:41]} 22. Qd4 {[%emt 0:03:01]} e5 {[%emt 0:01:48]} 23. Nd6+ {[%emt 0:03:21]} Bxd6 {[%emt 0:00:04]} 24. Qxd6 {[%emt 0:00:07]} Qd7 {[%emt 0:00:06]} 25. Qxd7+ {[%emt 0:00:44]} Kxd7 {[%emt 0:00:01]} 26. Rc7+ {[%emt 0:00:13]} Ke6 {[%emt 0:00:06]} 27. f4 {[%emt 0:02:42]} Bd3 {[%emt 0:00:04]} 28. Rfc1 {[%emt 0:01:24]} g6 {[%emt 0:00:49]} 29. Rxb7 {[%emt 0:01:30]} Rac8 {[%emt 0:00:03]} 30. Bc7 {[%emt 0:00:30]} h5 {[%emt 0:01:56]} 31. Rb6+ {[%emt 0:00:30]} Kd5 {[%emt 0:00:57]} 32. g5 {[%emt 0:05:14]} fxg5 {[%emt 0:00:34]} 33. fxe5 {[%emt 0:00:58]} Rh7 {[%emt 0:00:44]} 34. Rbc6 {[%emt 0:00:48]} Ke4 {[%emt 0:00:34]} 35. e6 {[%emt 0:00:50]} g4 {[%emt 0:00:22]} 36. hxg4 {[%emt 0:02:30]} hxg4 {[%emt 0:00:01]} 37. Kg2 {[%emt 0:00:23]} Re7 {[%emt 0:00:55]} 38. Kg3 {[%emt 0:02:31]} Bb5 {[%emt 0:00:08]} 39. R6c3 {[%emt 0:01:35]} Rxe6 {[%emt 0:00:14]} 40. Kxg4 {[%emt 0:00:28]} Be2+ {[%emt 0:00:28]} 41. Kg3 {[%emt 0:31:25]} Rf8 {[%emt 0:02:36]} 42. Bf4 {[%emt 0:00:00]} g5 {[%emt 0:04:30]} 43. Bxg5 {[%emt 0:00:28]} Rg6 {[%emt 0:00:35]} 44. Rc5 {[%emt 0:01:26]} Rfg8 {[%emt 0:00:21]} 45. Kh4 {[%emt 0:02:18]} Kf3 {[%emt 0:05:55]} 46. Bf6 {[%emt 0:09:26]} Rh6+ {[%emt 0:00:52]} 0-1

[Event "Deloitte NED-ch Women 2019"]
[Site "Amsterdam"]
[Date "2019.07.02"]
[Round "2.8"]
[White "Ratsma, Rosa"]
[Black "Roebers, Eline"]
[Result "1-0"]
[ECO "B84"]
[WhiteElo "2282"]
[BlackElo "2069"]
[Annotator "NA"]
[PlyCount "89"]
[EventDate "2019.07.01"]
[EventType "tourn"]
[EventCountry "NED"]
[SourceTitle "playchess.com"]
[Source "ChessBase"]
[SourceQuality "1"]
[TimeControl "40/5400+30:1800+30"]

1. e4 {[%emt 0:00:00]} c5 {[%emt 0:00:00]} 2. Nf3 {[%emt 0:00:00]} e6 {[%emt 0:00:00]} 3. d4 {[%emt 0:00:00]} cxd4 {[%emt 0:00:16]} 4. Nxd4 {[%emt 0:00:01]} Nc6 {[%emt 0:00:32]} 5. Nc3 {[%emt 0:00:14]} Qc7 {[%emt 0:00:38]} 6. Be3 {[%emt 0:00:35]} a6 {[%emt 0:00:34]} 7. Qd2 {[%emt 0:00:18]} Nf6 {[%emt 0:02:02]} 8. f4 {[%emt 0:00:21]} d6 {[%emt 0:02:25]} 9. O-O-O {[%emt 0:00:56]} Be7 {[%emt 0:02:29]} 10. Be2 {[%emt 0:00:30]} O-O {[%emt 0:01:33]} 11. g4 {[%emt 0:01:15]} b5 {[%emt 0:11:24]} 12. a3 {[%emt 0:16:11]} Bb7 {[%emt 0:09:47]} 13. g5 {[%emt 0:04:21]} Nd7 {[%emt 0:05:29]} 14. Rhg1 {[%emt 0:08:02]} Nxd4 {[%emt 0:11:37]} 15. Bxd4 {[%emt 0:07:23]} Nc5 {[%emt 0:09:57]} 16. f5 {[%emt 0:11:46]} Nxe4 {[%emt 0:18:19]} 17. Nxe4 {[%emt 0:00:21]} Bxe4 {[%emt 0:00:05]} 18. f6 {[%emt 0:00:56]} Rfc8 {[%emt 0:02:01]} 19. Bc3 {[%emt 0:07:45]} Bf8 {[%emt 0:00:43]} 20. Rg4 {[%emt 0:07:42]} d5 {[%emt 0:05:45]} 21. Bd3 {[%emt 0:08:12]} Bxd3 {[%emt 0:05:27]} 22. Qxd3 {[%emt 0:00:20]} g6 {[%emt 0:00:57]} 23. Be1 {[%emt 0:06:52]} Qb6 {[%emt 0:05:10]} 24. Bg3 {[%emt 0:05:07]} Rc4 {[%emt 0:00:36]} 25. Rxc4 {[%emt 0:00:28]} bxc4 {[%emt 0:01:31]} 26. Qc3 {[%emt 0:00:33]} Bc5 {[%emt 0:01:02]} 27. Bf4 {[%emt 0:02:00]} Qb5 {[%emt 0:01:19]} 28. Be5 {[%emt 0:02:51]} Qb6 {[%emt 0:00:45]} 29. h4 {[%emt 0:02:03]} Rc8 {[%emt 0:01:07]} 30. h5 {[%emt 0:04:58]} Be3+ {[%emt 0:00:45]} 31. Kb1 {[%emt 0:00:06]} Bxg5 {[%emt 0:00:34]} 32. hxg6 {[%emt 0:00:09]} fxg6 {[%emt 0:00:27]} 33. Qh3 {[%emt 0:02:34]} h6 {[%emt 0:00:26]} 34. Rxd5 {[%emt 0:00:45]} c3 {[%emt 0:00:35]} 35. b3 {[%emt 0:00:46]} Re8 {[%emt 0:00:32]} 36. Rd7 {[%emt 0:00:40]} Rf8 {[%emt 0:00:34]} 37. Rg7+ {[%emt 0:00:41]} Kh8 {[%emt 0:00:07]} 38. f7 {[%emt 0:00:14]} Qg1+ {[%emt 0:00:27]} 39. Ka2 {[%emt 0:00:05]} Qc1 {[%emt 0:00:28]} 40. Rg8+ {[%emt 0:00:34]} Kh7 {[%emt 0:00:04]} 41. Rg7+ {[%emt 0:31:13]} Kh8 {[%emt 0:30:04]} 42. Rxg6+ {[%emt 0:00:20]} Kh7 {[%emt 0:00:04]} 43. Rg7+ {[%emt 0:00:20]} Kh8 {[%emt 0:00:04]} 44. Rg8+ {[%emt 0:00:12]} Kh7 {[%emt 0:00:06]} 45. Qd3# {[%emt 0:01:12]} 1-0